fUSD/lending_fUSD_20240619
["ID","MTS","AMOUNT","RATE_DAILY","PERIOD"]
[329902606,1718809833184,-500.0,0.00013588,2]
[329902607,1718809833195,-500.0,0.00013588,2]
[329902608,1718809833205,-219.86,0.00013589,2]
[329902609,1718809833216,-229.45888129,0.0001359,2]
[329902610,1718809833227,-175.33494798,0.00013598,2]
[329902611,1718809833238,-176.47864197,0.00013598,2]
[329902612,1718809833247,-178.16282075,0.00013598,2]
[329902613,1718809833256,-179.39771079,0.00013598,2]
[329902614,1718809833266,-157.41483331,0.00013598,2]
[329902615,1718809833276,-641.16185523,0.00013598,2]
[329902616,1718809833286,-330.98377588,0.00013598,2]
[329902617,1718809833297,-483.735,0.00013598,2]
[329902618,1718809833307,-383.65473788,0.00013609,2]
[329902619,1718809833315,-641.16185521,0.0001364,2]
[329902620,1718809833325,-157.41483326,0.00013648,2]
[329902621,1718809833335,-3975.4706,0.00013671,2]
[329902622,1718809833346,-641.16185521,0.00013682,2]
[329902623,1718809833356,-27242.19740661,0.00013685,2]
[329902624,1718809833366,-1051.8045229,0.00013687,2]
[329902625,1718809833376,-3438.56089153,0.00013687,2]
[329902626,1718809833390,-1800.0,0.00013687,2]
[329902627,1718809833401,-800.07111468,0.00013687,2]
[329902628,1718809833413,-6092.06668689,0.00013687,2]
[329902629,1718809833423,-3484.9757867,0.00013687,2]
[329902630,1718809833432,-2713.3798836,0.00013687,2]
[329902631,1718809833442,-1000.0,0.00013694,2]
[329902632,1718809833452,-155.35543044,0.00013696,2]
[329902633,1718809833461,-188.10085704,0.00013696,2]
[329902634,1718809833471,-176.70633638,0.00013696,2]
[329902635,1718809833481,-1260.794009,0.00013696,2]
[329902636,1718809833492,-646.5329412,0.00013696,2]
[329902637,1718809833502,-308.17174655,0.00013696,2]
[329902638,1718809833513,-2685.36448558,0.00013696,2]
[329902639,1718809833526,-2651.01465228,0.00013696,2]
[329902640,1718809833539,-690.20000005,0.00013696,2]
[329902641,1718809833551,-2401.06300248,0.00013696,2]
[329902642,1718809833561,-493.44685405,0.00013696,2]
[329902643,1718809833570,-1488.02945496,0.00013696,2]
[329902644,1718809833581,-202.15629901,0.00013696,2]
[329902645,1718809833590,-626.45669853,0.00013696,2]
[329902646,1718809833601,-155.31066747,0.00013696,2]
[329902647,1718809833611,-471.87674079,0.00013696,2]
[329902648,1718809833621,-286.30073796,0.00013696,2]
[329902649,1718809833631,-407.05469868,0.00013696,2]
[329902650,1718809833641,-526.90325593,0.00013696,2]
[329902651,1718809833650,-873.16381455,0.00013696,2]
[329902652,1718809833660,-400.0,0.00013696,2]
[329902653,1718809833669,-157.31344201,0.00013696,2]
[329902654,1718809833678,-217.36110672,0.00013696,2]
[329902655,1718809833688,-155.0,0.00013696,2]
[329902656,1718809833698,-157.51406348,0.00013696,2]
[329902657,1718809833707,-155.0,0.00013696,2]
[329902658,1718809833717,-155.0,0.00013696,2]
[329902659,1718809833726,-2496.14472866,0.00013696,2]
[329902660,1718809833736,-688.89348887,0.00013696,2]
[329902661,1718809833745,-489.39014488,0.00013696,2]
[329902662,1718809833755,-260.07217535,0.00013696,2]
[329902663,1718809833764,-199.8667487,0.00013697,2]
[329902664,1718809833774,-159.18905416,0.00013697,2]
[329902665,1718809833784,-3329.64588364,0.00013697,2]
[329902666,1718809833794,-800.07111468,0.00013697,2]
[329902667,1718809833804,-209.23301289,0.00013697,2]
[329902668,1718809833814,-5903.55757461,0.00013697,2]
[329902669,1718809833824,-1919.87763779,0.00013698,2]
[329902670,1718809833836,-80.12236221,0.00013698,2]
[329902671,1718809833846,-500.0,0.00013698,2]
[329902672,1718809833855,-500.0,0.00013698,2]
[329902673,1718809833864,-200.0,0.00013698,2]
[329902674,1718809833874,-684.62,0.00013698,2]
[329902675,1718809833883,-500.0,0.00013698,2]
[329902676,1718809833892,-500.0,0.00013698,2]
[329902677,1718809833902,-679.34,0.00013698,2]
[329902678,1718809833911,-500.0,0.00013698,2]
[329902679,1718809833920,-500.0,0.00013698,2]
[329902680,1718809833929,-500.0,0.00013698,2]
[329902681,1718809833938,-500.0,0.00013698,2]
[329902682,1718809833948,-253.84965024,0.00013698,2]
[329902683,1718809833957,-708.62,0.00013698,2]
[329902684,1718809833966,-500.0,0.00013698,2]
[329902685,1718809833975,-500.0,0.00013698,2]
[329902686,1718809833985,-500.0,0.00013698,2]
[329902687,1718809833995,-500.0,0.00013698,2]
[329902688,1718809834005,-818.8,0.00013698,2]
[329902689,1718809834014,-500.0,0.00013698,2]
[329902690,1718809834024,-500.0,0.00013698,2]
[329902691,1718809834034,-500.0,0.00013698,2]
[329902692,1718809834045,-500.0,0.00013698,2]
[329902693,1718809834055,-500.0,0.00013698,2]
[329902694,1718809834065,-584.7,0.00013698,2]
[329902695,1718809834074,-500.0,0.00013698,2]
[329902696,1718809834084,-888.3,0.00013698,2]
[329902697,1718809834093,-366.3441122,0.00013698,2]
[329902698,1718809834103,-500.0,0.00013698,2]
[329902699,1718809834112,-500.0,0.00013698,2]
[329902700,1718809834121,-500.0,0.00013698,2]
[329902701,1718809834135,-500.0,0.00013698,2]
[329902702,1718809834144,-500.0,0.00013698,2]
[329902703,1718809834154,-500.0,0.00013698,2]
[329902704,1718809834163,-560.32,0.00013698,2]
[329902705,1718809834172,-500.0,0.00013698,2]
[329902706,1718809834183,-500.0,0.00013698,2]
[329902707,1718809834192,-500.73,0.00013698,2]
[329902708,1718809834202,-833.98,0.00013698,2]
[329902709,1718809834213,-622.93,0.00013698,2]
[329902710,1718809834223,-548.67,0.00013698,2]
[329902711,1718809834233,-500.0,0.00013698,2]
[329902712,1718809834243,-500.0,0.00013698,2]
[329902713,1718809834252,-500.0,0.00013698,2]
[329902714,1718809834262,-781.91,0.00013698,2]
[329902715,1718809834272,-500.0,0.00013698,2]
[329902716,1718809834281,-516.43,0.00013698,2]
[329902717,1718809834291,-711.52,0.00013698,2]
[329902718,1718809834302,-500.0,0.00013698,2]
[329902719,1718809834311,-500.0,0.00013698,2]
[329902720,1718809834320,-500.0,0.00013698,2]
[329902721,1718809834329,-500.0,0.00013698,2]
[329902722,1718809834338,-500.0,0.00013698,2]
[329902723,1718809834348,-1006.14,0.00013698,2]
[329902724,1718809834357,-952.16,0.00013698,2]
[329902725,1718809834367,-699.55,0.00013698,2]
[329902726,1718809834376,-500.0,0.00013698,2]
[329902727,1718809834386,-500.0,0.00013698,2]
[329902728,1718809834395,-500.0,0.00013698,2]
[329902729,1718809834405,-500.0,0.00013698,2]
[329902730,1718809834414,-500.0,0.00013698,2]
[329902731,1718809834423,-500.0,0.00013698,2]
[329902732,1718809834432,-303.67299994,0.00013698,2]
[329902733,1718809834441,-500.0,0.00013698,2]
[329902734,1718809834450,-527.38,0.00013698,2]
[329902735,1718809834459,-500.0,0.00013698,2]
[329902736,1718809834468,-500.0,0.00013698,2]
[329902737,1718809834478,-500.0,0.00013698,2]
[329902738,1718809834488,-500.0,0.00013698,2]
[329902739,1718809834497,-500.0,0.00013698,2]
[329902740,1718809834506,-500.0,0.00013698,2]
[329902741,1718809834515,-500.0,0.00013698,2]
[329902742,1718809834524,-500.0,0.00013698,2]
[329902743,1718809834533,-1103.97,0.00013698,2]
[329902744,1718809834543,-500.0,0.00013698,2]
[329902745,1718809834552,-640.91,0.00013698,2]
[329902746,1718809834561,-540.5,0.00013698,2]
[329902747,1718809834571,-835.32,0.00013698,2]
[329902748,1718809834580,-500.0,0.00013698,2]
[329902749,1718809834589,-238.04581343,0.00013698,2]
[329902750,1718809834599,-500.0,0.00013698,2]
[329902751,1718809834608,-2000.0,0.00013698,2]
[329902752,1718809834618,-500.0,0.00013698,2]
[329902753,1718809834626,-500.0,0.00013698,2]
[329902754,1718809834635,-500.0,0.00013698,2]
[329902755,1718809834644,-1252.53,0.00013698,2]
[329902756,1718809834653,-200.0,0.00013698,2]
[329902757,1718809834662,-1504.41,0.00013698,2]
[329902758,1718809834672,-388.60291359,0.00013698,2]
[329902759,1718809834681,-500.0,0.00013698,2]
[329902760,1718809834692,-500.0,0.00013698,2]
[329902761,1718809834702,-592.75,0.00013698,2]
[329902762,1718809834711,-846.13,0.00013698,2]
[329902763,1718809834720,-500.0,0.00013698,2]
[329902764,1718809834729,-542.39,0.00013698,2]
[329902765,1718809834738,-469.2,0.00013698,2]
[329902766,1718809834747,-701.33,0.00013698,2]
[329902767,1718809834756,-500.0,0.00013698,2]
[329902768,1718809834766,-708.53,0.00013698,2]
[329902769,1718809834777,-500.0,0.00013698,2]
[329902770,1718809834787,-1136.15,0.00013698,2]
[329902771,1718809834797,-500.0,0.00013698,2]
[329902772,1718809834806,-153.589885,0.00013698,2]
[329902773,1718809834816,-500.0,0.00013698,2]
[329902774,1718809834825,-716.96,0.00013698,2]
[329902775,1718809834833,-151.0,0.00013698,2]
[329902776,1718809834842,-151.0,0.00013698,2]
[329902777,1718809834852,-970.42,0.00013698,2]
[329902778,1718809834861,-574.66,0.00013698,2]
[329902779,1718809834871,-500.0,0.00013698,2]
[329902780,1718809834880,-622.33,0.00013698,2]
[329902781,1718809834889,-500.0,0.00013698,2]
[329902782,1718809834898,-500.0,0.00013698,2]
[329902783,1718809834907,-500.0,0.00013698,2]
[329902784,1718809834917,-500.0,0.00013698,2]
[329902785,1718809834926,-1467.74,0.00013698,2]
[329902786,1718809834935,-500.0,0.00013698,2]
[329902787,1718809834944,-1550.59,0.00013698,2]
[329902788,1718809834954,-500.0,0.00013698,2]
[329902789,1718809834963,-500.0,0.00013698,2]
[329902790,1718809834972,-1100.59,0.00013698,2]
[329902791,1718809834981,-500.0,0.00013698,2]
[329902792,1718809834991,-895.22,0.00013698,2]
[329902793,1718809835000,-966.42,0.00013698,2]
[329902794,1718809835009,-277.09588445,0.00013698,2]
[329902795,1718809835536,-1106.09411555,0.00013698,2]
[329902796,1718809835546,-813.22,0.00013698,2]
[329902797,1718809835555,-270.11708253,0.00013698,2]
[329902798,1718809835567,-229.88291747,0.00013698,2]
[329902799,1718809835576,-500.0,0.00013698,2]
[329902800,1718809835585,-500.0,0.00013698,2]
[329902801,1718809835594,-500.0,0.00013698,2]
[329902802,1718809835603,-500.0,0.00013698,2]
[329902803,1718809835612,-691.48,0.00013698,2]
[329902804,1718809835621,-966.85,0.00013698,2]
[329902805,1718809835631,-510.38,0.00013698,2]
[329902806,1718809835640,-500.0,0.00013698,2]
[329902807,1718809835649,-909.61,0.00013698,2]
[329902808,1718809835658,-1134.14,0.00013698,2]
[329902809,1718809835668,-522.24,0.00013698,2]
[329902810,1718809835677,-500.0,0.00013698,2]
[329902811,1718809835686,-1220.51,0.00013698,2]
[329902812,1718809835695,-500.0,0.00013698,2]
[329902813,1718809835704,-500.0,0.00013698,2]
[329902814,1718809835714,-500.0,0.00013698,2]
[329902815,1718809835723,-2382.13,0.00013698,2]
[329902816,1718809835732,-500.0,0.00013698,2]
[329902817,1718809835741,-500.0,0.00013698,2]
[329902818,1718809835751,-793.08,0.00013698,2]
[329902819,1718809835761,-542.1,0.00013698,2]
[329902820,1718809835770,-500.0,0.00013698,2]
[329902821,1718809835779,-527.54162477,0.00013698,2]
[329902822,1718809835791,-120.58241847,0.00013698,2]
[329902823,1718809835802,-500.0,0.00013698,2]
[329902824,1718809835811,-1538.57,0.00013698,2]
[329902825,1718809835819,-1619.99,0.00013698,2]
[329902826,1718809835829,-861.65,0.00013698,2]
[329902827,1718809835839,-500.0,0.00013698,2]
[329902828,1718809835848,-1656.69,0.00013698,2]
[329902829,1718809835857,-500.0,0.00013698,2]
[329902830,1718809835867,-500.0,0.00013698,2]
[329902831,1718809835876,-500.0,0.00013698,2]
[329902832,1718809835886,-500.0,0.00013698,2]
[329902833,1718809835895,-1368.99,0.00013698,2]
[329902834,1718809835904,-198.63249207,0.00013698,2]
[329902835,1718809835916,-1190.44,0.00013698,2]
[329902836,1718809835928,-479.93750793,0.00013698,2]
[329902837,1718809835937,-25.44864786,0.00013698,2]
[329902845,1718809838434,-368.4034386,0.00012097,2]
[329902846,1718809838447,-384.59479513,0.00012097,2]
[329902847,1718809838459,-874.23170609,0.00012097,2]
[329902848,1718809838469,-1631.77135214,0.00013698,2]
[329902849,1718809838479,-1688.8,0.00013698,2]
[329902850,1718809838488,-500.0,0.00013698,2]
[329902851,1718809838498,-1105.17,0.00013698,2]
[329902852,1718809838508,-500.0,0.00013698,2]
[329902853,1718809838517,-500.0,0.00013698,2]
[329902854,1718809838527,-1330.15,0.00013698,2]
[329902855,1718809838537,-892.86,0.00013698,2]
[329902856,1718809838547,-500.0,0.00013698,2]
[329902857,1718809838557,-1763.55,0.00013698,2]
[329902858,1718809838566,-500.0,0.00013698,2]
[329902859,1718809838577,-1006.96,0.00013698,2]
[329902860,1718809838587,-500.0,0.00013698,2]
[329902861,1718809838597,-924.67,0.00013698,2]
[329902862,1718809838607,-500.0,0.00013698,2]
[329902863,1718809838616,-500.0,0.00013698,2]
[329902864,1718809838626,-886.82,0.00013698,2]
[329902865,1718809838636,-511.21,0.00013698,2]
[329902866,1718809838645,-500.0,0.00013698,2]
[329902867,1718809838655,-1023.14,0.00013698,2]
[329902868,1718809838666,-500.0,0.00013698,2]
[329902869,1718809838676,-672.4,0.00013698,2]
[329902870,1718809838685,-643.69,0.00013698,2]
[329902873,1718809838695,-1306.55,0.00013698,2]
[329902875,1718809838704,-500.0,0.00013698,2]
[329902876,1718809838714,-1324.37,0.00013698,2]
[329902878,1718809838724,-827.21,0.00013698,2]
[329902880,1718809838735,-924.22,0.00013698,2]
[329902882,1718809838744,-552.98,0.00013698,2]
[329902884,1718809838754,-639.68,0.00013698,2]
[329902886,1718809838764,-636.42,0.00013698,2]
[329902889,1718809838774,-550.22,0.00013698,2]
[329902891,1718809838784,-500.0,0.00013698,2]
[329902892,1718809838794,-972.87,0.00013698,2]
[329902894,1718809838806,-1409.26,0.00013698,2]
[329902896,1718809838816,-500.0,0.00013698,2]
[329902898,1718809838825,-500.0,0.00013698,2]
[329902900,1718809838835,-1060.04,0.00013698,2]
[329902902,1718809838845,-389.80330597,0.00013698,2]
[329902905,1718809838859,-110.19669403,0.00013698,2]
[329902907,1718809838868,-157.20621537,0.00013698,2]
[329902911,1718809838980,-209.23301289,0.00013697,2]
[329902912,1718809838990,-48.17031269,0.00013698,2]
[329902913,1718809839002,-294.62347194,0.00013698,2]
[329902914,1718809839012,-1002.11,0.00013698,2]
[329902915,1718809839022,-718.76,0.00013698,2]
[329902916,1718809839032,-500.0,0.00013698,2]
[329902917,1718809839042,-500.0,0.00013698,2]
[329902918,1718809839054,-1879.0,0.00013698,2]
[329902919,1718809839063,-500.0,0.00013698,2]
[329902920,1718809839072,-5000.0,0.00013698,2]
[329902921,1718809839082,-1159.58,0.00013698,2]
[329902922,1718809839092,-669.17,0.00013698,2]
[329902923,1718809839102,-500.0,0.00013698,2]
[329902924,1718809839112,-768.39,0.00013698,2]
[329902925,1718809839123,-500.0,0.00013698,2]
[329902926,1718809839135,-218.78024221,0.00013698,2]
[329902927,1718809839151,-911.00975779,0.00013698,2]
[329902928,1718809839161,-517.7989219,0.00013698,2]
[329902930,1718809840435,-2215.48382435,0.00013697,2]
[329902946,1718809843934,-1067.0,0.00013436,2]
[329902948,1718809843944,-3688.07375026,0.00013697,2]
[329902950,1718809843955,-680.2110781,0.00013698,2]
[329902951,1718809843964,-500.0,0.00013698,2]
[329902953,1718809843973,-543.97,0.00013698,2]
[329902954,1718809843983,-500.0,0.00013698,2]
[329902955,1718809843992,-1454.6,0.00013698,2]
[329902956,1718809844003,-1028.11,0.00013698,2]
[329902957,1718809844012,-1465.98,0.00013698,2]
[329902958,1718809844022,-724.97,0.00013698,2]
[329902959,1718809844032,-1228.1,0.00013698,2]
[329902960,1718809844042,-784.28,0.00013698,2]
[329902961,1718809844053,-526.17,0.00013698,2]
[329902962,1718809844062,-500.0,0.00013698,2]
[329902963,1718809844071,-651.33,0.00013698,2]
[329902964,1718809844080,-500.0,0.00013698,2]
[329902965,1718809844090,-794.6,0.00013698,2]
[329902966,1718809844099,-500.0,0.00013698,2]
[329902967,1718809844110,-1272.92,0.00013698,2]
[329902968,1718809844120,-500.0,0.00013698,2]
[329902969,1718809844132,-500.0,0.00013698,2]
[329902970,1718809844143,-913.76,0.00013698,2]
[329902971,1718809844153,-500.0,0.00013698,2]
[329902972,1718809844163,-500.0,0.00013698,2]
[329902973,1718809844173,-500.0,0.00013698,2]
[329902974,1718809844182,-500.0,0.00013698,2]
[329902975,1718809844192,-601.57,0.00013698,2]
[329902976,1718809844202,-546.95,0.00013698,2]
[329902977,1718809844211,-811.72,0.00013698,2]
[329902978,1718809844223,-999.58,0.00013698,2]
[329902979,1718809844233,-500.0,0.00013698,2]
[329902980,1718809844243,-736.29,0.00013698,2]
[329902981,1718809844253,-788.77,0.00013698,2]
[329902982,1718809844263,-151.0,0.00013698,2]
[329902983,1718809844273,-151.0,0.00013698,2]
[329902984,1718809844282,-500.0,0.00013698,2]
[329902985,1718809844292,-1026.61,0.00013698,2]
[329902986,1718809844302,-2088.47,0.00013698,2]
[329902987,1718809844312,-1364.01,0.00013698,2]
[329902988,1718809844320,-552.86640443,0.00013698,2]
[329902989,1718809844329,-500.0,0.00013698,2]
[329902990,1718809844339,-730.23,0.00013698,2]
[329902991,1718809844348,-1547.33,0.00013698,2]
[329902992,1718809844357,-500.0,0.00013698,2]
[329902993,1718809844367,-1053.66,0.00013698,2]
[329902994,1718809844376,-1392.23,0.00013698,2]
[329902995,1718809844386,-1119.35,0.00013698,2]
[329902996,1718809844396,-500.0,0.00013698,2]
[329902997,1718809844405,-500.0,0.00013698,2]
[329902998,1718809844415,-500.0,0.00013698,2]
[329902999,1718809844424,-1241.49,0.00013698,2]
[329903000,1718809844434,-500.0,0.00013698,2]
[329903001,1718809844444,-809.91,0.00013698,2]
[329903002,1718809844453,-500.0,0.00013698,2]
[329903003,1718809844463,-500.0,0.00013698,2]
[329903004,1718809844472,-1238.03,0.00013698,2]
[329903005,1718809844482,-500.0,0.00013698,2]
[329903006,1718809844491,-500.0,0.00013698,2]
[329903007,1718809844501,-1811.16,0.00013698,2]
[329903008,1718809844510,-1200.3,0.00013698,2]
[329903009,1718809844519,-2000.0,0.00013698,2]
[329903010,1718809844529,-597.06,0.00013698,2]
[329903011,1718809844538,-685.86,0.00013698,2]
[329903012,1718809844547,-200.0,0.00013698,2]
[329903013,1718809844557,-500.0,0.00013698,2]
[329903014,1718809844567,-1007.69,0.00013698,2]
[329903015,1718809844577,-1062.49,0.00013698,2]
[329903016,1718809844586,-644.57,0.00013698,2]
[329903017,1718809844596,-1336.36,0.00013698,2]
[329903018,1718809844611,-500.0,0.00013698,2]
[329903019,1718809844621,-261.3887204,0.00013698,2]
[329903020,1718809844631,-692.46,0.00013698,2]
[329903021,1718809844640,-523.55,0.00013698,2]
[329903022,1718809844650,-500.0,0.00013698,2]
[329903023,1718809844660,-500.0,0.00013698,2]
[329903024,1718809844670,-777.29,0.00013698,2]
[329903025,1718809844680,-998.77,0.00013698,2]
[329903026,1718809844689,-668.93,0.00013698,2]
[329903027,1718809844699,-500.0,0.00013698,2]
[329903028,1718809844709,-500.0,0.00013698,2]
[329903029,1718809844719,-1123.99,0.00013698,2]
[329903030,1718809844728,-1632.71,0.00013698,2]
[329903031,1718809844739,-500.0,0.00013698,2]
[329903032,1718809844749,-1588.86,0.00013698,2]
[329903033,1718809844759,-500.0,0.00013698,2]
[329903034,1718809844769,-500.0,0.00013698,2]
[329903035,1718809844779,-500.0,0.00013698,2]
[329903036,1718809844789,-500.0,0.00013698,2]
[329903037,1718809844801,-500.0,0.00013698,2]
[329903038,1718809844810,-500.0,0.00013698,2]
[329903039,1718809844820,-1548.26,0.00013698,2]
[329903040,1718809844829,-520.29,0.00013698,2]
[329903041,1718809844839,-1250.36,0.00013698,2]
[329903042,1718809844849,-500.0,0.00013698,2]
[329903043,1718809844861,-500.0,0.00013698,2]
[329903044,1718809844871,-578.24,0.00013698,2]
[329903045,1718809844880,-500.0,0.00013698,2]
[329903046,1718809844890,-1106.35,0.00013698,2]
[329903047,1718809844900,-878.48,0.00013698,2]
[329903048,1718809844910,-963.97,0.00013698,2]
[329903049,1718809844921,-727.3,0.00013698,2]
[329903050,1718809844930,-608.71,0.00013698,2]
[329903051,1718809844940,-500.0,0.00013698,2]
[329903052,1718809844950,-1437.52,0.00013698,2]
[329903053,1718809844962,-500.0,0.00013698,2]
[329903054,1718809844971,-1168.18,0.00013698,2]
[329903055,1718809844981,-781.08,0.00013698,2]
[329903056,1718809844991,-151.0,0.00013698,2]
[329903057,1718809845001,-151.0,0.00013698,2]
[329903058,1718809845011,-734.14,0.00013698,2]
[329903059,1718809845021,-500.0,0.00013698,2]
[329903060,1718809845031,-453.49709307,0.00013698,2]
[329903061,1718809845040,-849.12,0.00013698,2]
[329903062,1718809845050,-500.0,0.00013698,2]
[329903063,1718809845060,-500.0,0.00013698,2]
[329903064,1718809845070,-500.0,0.00013698,2]
[329903065,1718809845080,-647.78,0.00013698,2]
[329903066,1718809845090,-500.0,0.00013698,2]
[329903067,1718809845100,-500.0,0.00013698,2]
[329903068,1718809845110,-2640.42,0.00013698,2]
[329903069,1718809845119,-1236.58,0.00013698,2]
[329903070,1718809845134,-500.0,0.00013698,2]
[329903071,1718809845150,-1149.77,0.00013698,2]
[329903072,1718809845160,-500.0,0.00013698,2]
[329903073,1718809845170,-500.0,0.00013698,2]
[329903074,1718809845182,-500.0,0.00013698,2]
[329903075,1718809845192,-1232.88,0.00013698,2]
[329903076,1718809845202,-2530.3,0.00013698,2]
[329903077,1718809845211,-1310.61,0.00013698,2]
[329903078,1718809845221,-1310.84,0.00013698,2]
[329903079,1718809845232,-500.0,0.00013698,2]
[329903080,1718809845242,-500.0,0.00013698,2]
[329903081,1718809845254,-151.0,0.00013698,2]
[329903082,1718809845264,-151.0,0.00013698,2]
[329903083,1718809845274,-831.65,0.00013698,2]
[329903084,1718809845284,-698.86,0.00013698,2]
[329903085,1718809845294,-500.0,0.00013698,2]
[329903086,1718809845305,-500.0,0.00013698,2]
[329903087,1718809845314,-500.0,0.00013698,2]
[329903088,1718809845324,-23435.74,0.00013698,2]
[329903089,1718809845333,-500.0,0.00013698,2]
[329903090,1718809845343,-2408.6,0.00013698,2]
[329903091,1718809845353,-500.0,0.00013698,2]
[329903092,1718809845363,-726.93,0.00013698,2]
[329903093,1718809845373,-525.3,0.00013698,2]
[329903094,1718809845382,-500.0,0.00013698,2]
[329903095,1718809845395,-2903.66,0.00013698,2]
[329903096,1718809845404,-871.0,0.00013698,2]
[329903097,1718809845414,-8869.18,0.00013698,2]
[329903098,1718809845424,-1265.79,0.00013698,2]
[329903099,1718809845434,-2529.85,0.00013698,2]
[329903100,1718809845444,-1332.33,0.00013698,2]
[329903101,1718809845454,-500.0,0.00013698,2]
[329903102,1718809845463,-500.0,0.00013698,2]
[329903103,1718809845473,-2140.06,0.00013698,2]
[329903104,1718809845482,-500.0,0.00013698,2]
[329903105,1718809845491,-628.22,0.00013698,2]
[329903106,1718809845501,-692.13,0.00013698,2]
[329903107,1718809845511,-5422.63,0.00013698,2]
[329903108,1718809845520,-625.26,0.00013698,2]
[329903109,1718809845530,-500.0,0.00013698,2]
[329903110,1718809845539,-842.96,0.00013698,2]
[329903111,1718809845549,-1398.3,0.00013698,2]
[329903112,1718809845560,-843.79,0.00013698,2]
[329903113,1718809845569,-711.2,0.00013698,2]
[329903114,1718809845579,-920.15,0.00013698,2]
[329903115,1718809845588,-544.25,0.00013698,2]
[329903116,1718809845598,-547.07,0.00013698,2]
[329903117,1718809845608,-1938.49,0.00013698,2]
[329903118,1718809845618,-3451.8,0.00013698,2]
[329903119,1718809845628,-8398.49,0.00013698,2]
[329903120,1718809845637,-500.0,0.00013698,2]
[329903121,1718809845647,-1042.64,0.00013698,2]
[329903122,1718809845656,-1067.13,0.00013698,2]
[329903123,1718809845666,-659.96,0.00013698,2]
[329903124,1718809845676,-500.0,0.00013698,2]
[329903125,1718809845685,-1768.77,0.00013698,2]
[329903126,1718809845695,-500.0,0.00013698,2]
[329903127,1718809845705,-15853.88170601,0.00013698,2]
[329903141,1718809847623,-209.90278578,0.00013696,2]
[329903142,1718809847633,-453.9883235,0.00013696,2]
[329903143,1718809847642,-155.38937927,0.00013696,2]
[329903144,1718809847652,-1753.92818585,0.00013698,2]
[329903145,1718809847664,-500.0,0.00013698,2]
[329903146,1718809847675,-699.27,0.00013698,2]
[329903147,1718810458825,151.0,0.0002511,120]
[329903148,1718810472296,151.0,0.0002511,120]
[329903168,1718810912693,500.0,0.00024,120]
[329903169,1718810962929,344.88232604,0.00026,90]
[329903177,1718811032847,-1837.71670388,0.00010661,2]
[329903178,1718811032861,-1500.599673,0.00010661,2]
[329903179,1718811032875,-772.1,0.00010661,2]
[329903180,1718811032888,-841.7140263,0.00010661,2]
[329903181,1718811032899,-721.75,0.00010662,2]
[329903182,1718811032909,-357.50624346,0.00011198,2]
[329903183,1718811032921,-300.0,0.00011199,2]
[329903184,1718811032933,-189603.23536722,0.000112,2]
[329903185,1718811032944,-903.00185865,0.000112,2]
[329903186,1718811032957,-344.80855917,0.000112,2]
[329903187,1718811032968,-1280.56006859,0.000112,2]
[329903188,1718811032980,-11526.53708621,0.000112,2]
[329903189,1718811032992,-12245.6003244,0.000112,2]
[329903190,1718811033002,-3656.0636756,0.000112,2]
[329903191,1718811033013,-14847.4143244,0.000112,2]
[329903192,1718811033023,-420.0,0.00012304,2]